lending/lending_fUSD_20250424
["ID","MTS","AMOUNT","RATE_DAILY","PERIOD"]
[358874000,1745503848959,-300.0,0.000416,2]
[358874001,1745503848968,-988.42771834,0.00041644,10]
[358874002,1745503848979,-425.00515,0.00041688,30]
[358874003,1745503848990,-166.67,0.0004174,2]
[358874004,1745503849000,-166.66,0.00041795,2]
[358874005,1745503849011,-8219.01,0.00041795,2]
[358874006,1745503849022,-150.042422,0.00041798,120]
[358874007,1745503849032,-501.86,0.000418,3]
[358874008,1745503849042,-151.0,0.00041861,14]
[358874009,1745503849053,-353.903159,0.00041861,14]
[358874010,1745503849063,-353.903159,0.00041861,14]
[358874011,1745503849072,-158.084154,0.00041861,14]
[358874012,1745503849083,-151.0,0.00041861,14]
[358874013,1745503849093,-425.00515,0.00041888,30]
[358874014,1745503849103,-1000.0,0.00041918,30]
[358874015,1745503849113,-1000.0,0.00041918,30]
[358874016,1745503849123,-1000.0,0.00041918,30]
[358874017,1745503849132,-1000.0,0.00041918,30]
[358874018,1745503849142,-1000.0,0.00041918,30]
[358874019,1745503849151,-1000.0,0.00041918,30]
[358874020,1745503849162,-1000.0,0.00041918,30]
[358874021,1745503849173,-1000.0,0.00041918,30]
[358874022,1745503849184,-1000.0,0.00041918,30]
[358874023,1745503849193,-1000.0,0.00041918,30]
[358874024,1745503849207,-1000.0,0.00041918,30]
[358874025,1745503849218,-1000.0,0.00041918,30]
[358874026,1745503849252,-1000.0,0.00041918,30]
[358874027,1745503849264,-1000.0,0.00041918,30]
[358874028,1745503849274,-1000.0,0.00041918,30]
[358874029,1745503849284,-1000.0,0.00041918,30]
[358874030,1745503849294,-1000.0,0.00041918,30]
[358874031,1745503849303,-1000.0,0.00041918,30]
[358874032,1745503849313,-1000.0,0.00041918,30]
[358874033,1745503849323,-1000.0,0.00041918,30]
[358874034,1745503849332,-1000.0,0.00041918,30]
[358874035,1745503849342,-1000.0,0.00041918,30]
[358874036,1745503849351,-1000.0,0.00041918,30]
[358874037,1745503849361,-1000.0,0.00041918,30]
[358874038,1745503849371,-1000.0,0.00041918,30]
[358874039,1745503849381,-1000.0,0.00041918,30]
[358874040,1745503849391,-1000.0,0.00041918,30]
[358874041,1745503849403,-1000.0,0.00041918,30]
[358874042,1745503849413,-1000.0,0.00041918,30]
[358874043,1745503849423,-1000.0,0.00041918,30]
[358874044,1745503849433,-1000.0,0.00041918,30]
[358874045,1745503849443,-1000.0,0.00041918,30]
[358874046,1745503849456,-1000.0,0.00041918,30]
[358874047,1745503849466,-1000.0,0.00041918,30]
[358874048,1745503849477,-1000.0,0.00041918,30]
[358874049,1745503849487,-1000.0,0.00041918,30]
[358874050,1745503849498,-1000.0,0.00041918,30]
[358874051,1745503849509,-1000.0,0.00041918,30]
[358874052,1745503849519,-1000.0,0.00041918,30]
[358874053,1745503849531,-1000.0,0.00041918,30]
[358874054,1745503849541,-1000.0,0.00041918,30]
[358874055,1745503849552,-1000.0,0.00041918,30]
[358874056,1745503849562,-1000.0,0.00041918,30]
[358874057,1745503849573,-1000.0,0.00041918,30]
[358874058,1745503849583,-1000.0,0.00041918,30]
[358874059,1745503849594,-1000.0,0.00041918,30]
[358874060,1745503849606,-1000.0,0.00041918,30]
[358874061,1745503849617,-1000.0,0.00041918,30]
[358874062,1745503849627,-1000.0,0.00041918,30]
[358874063,1745503849637,-1510.03500119,0.00041918,30]
[358874064,1745503849647,-1000.0,0.00041947,14]
[358874065,1745503849657,-500.0,0.00041999,2]
[358874066,1745503849667,-50000.0,0.00042,22]
[358874067,1745503849677,-4093.25,0.00042,2]
[358874068,1745503849688,-2455.95,0.00042,2]
[358874069,1745503849704,-24494.91,0.00042,60]
[358874070,1745503849714,-163.90716705,0.00042,30]
[358874071,1745503849724,-987.604551,0.00042,43]
[358874072,1745503849733,-195.0,0.00042,31]
[358874073,1745503849743,-151.0,0.00042,14]
[358874074,1745503849754,-151.0,0.00042,14]
[358874075,1745503849764,-151.0,0.00042,14]
[358874076,1745503849775,-151.0,0.00042,14]
[358874077,1745503849786,-500.0,0.00042,120]
[358874078,1745503849795,-500.0,0.00042,120]
[358874079,1745503849805,-200.0,0.00042,67]
[358874080,1745503849816,-200.0,0.00042,67]
[358874081,1745503849827,-1006.96,0.00042,53]
[358874082,1745503849837,-500.0,0.00042,120]
[358874083,1745503849847,-450.0,0.00042,4]
[358874084,1745503849857,-259.57063,0.00042016,30]
[358874085,1745503849867,-150.0,0.00042027,7]
[358874086,1745503849878,-425.00515,0.00042088,30]
[358874087,1745503849889,-443.84,0.00042135,30]
[358874088,1745503849899,-351.2,0.00042135,30]
[358874089,1745503849909,-351.2,0.00042135,30]
[358874090,1745503849919,-351.2,0.00042135,30]
[358874091,1745503849930,-1006.96,0.0004215,54]
[358874092,1745503849940,-150.042422,0.00042198,120]
[358874093,1745503849952,-1767.56,0.00042272,30]
[358874094,1745503849962,-500.0,0.00042273,2]
[358874095,1745503849973,-450.34,0.00042276,30]
[358874096,1745503849984,-450.34,0.00042276,30]
[358874097,1745503849994,-450.34,0.00042276,30]
[358874098,1745503850004,-349.17,0.00042276,30]
[358874099,1745503850014,-450.34,0.00042276,30]
[358874100,1745503850024,-351.08,0.00042276,30]
[358874101,1745503850034,-450.34,0.00042276,30]
[358874102,1745503850045,-450.34,0.00042276,30]
[358874103,1745503850055,-1151.08,0.00042287,30]
[358874104,1745503850065,-323.5,0.00042287,30]
[358874105,1745503850075,-150.0,0.00042287,30]
[358874106,1745503850085,-351.2,0.00042287,30]
[358874107,1745503850095,-1151.08,0.00042287,30]
[358874108,1745503850104,-314.9,0.00042287,30]
[358874109,1745503850113,-351.2,0.00042287,30]
[358874110,1745503850124,-425.00515,0.00042288,30]
[358874111,1745503850135,-1006.96,0.000423,55]
[358874112,1745503850145,-150.0,0.00042394,2]
[358874113,1745503850155,-450.0,0.000424,4]
[358874114,1745503850165,-1009.989,0.0004243,10]
[358874115,1745503850176,-1006.96,0.0004245,56]
[358874116,1745503850186,-200.0,0.0004246,6]
[358874117,1745503850196,-200.0,0.0004246,6]
[358874118,1745503850211,-7810.95549952,0.00042461,6]
[358874119,1745503850220,-290.62013793,0.00042463,6]
[358874120,1745503850230,-421.32,0.00042465,120]
[358874121,1745503850240,-908.48014765,0.00042465,6]
[358874122,1745503850250,-2741.03265742,0.00042465,6]
[358874123,1745503850260,-785.25857572,0.00042465,6]
[358874124,1745503850272,-1000.0,0.00042466,14]
[358874125,1745503850282,-11506.1929498,0.00042468,6]
[358874126,1745503850292,-15605.52012376,0.00042469,6]
[358874127,1745503850303,-908.48014765,0.0004247,6]
[358874128,1745503850313,-211.41985655,0.00042471,6]
[358874129,1745503850324,-849.07606515,0.00042471,6]
[358874130,1745503850334,-2788.95080766,0.00042472,6]
[358874131,1745503850345,-8636.03421314,0.00042472,6]
[358874132,1745503850355,-9278.59083604,0.00042473,6]
[358874133,1745503850366,-19940.35713395,0.00042483,6]
[358874134,1745503850376,-2741.03265742,0.00042485,6]
[358874135,1745503850386,-425.00515,0.00042488,30]
[358874136,1745503850397,-741.15909597,0.0004249,6]
[358874137,1745503850408,-211.41985655,0.00042493,6]
[358874138,1745503850418,-4028.77929547,0.00042495,6]
[358874139,1745503850429,-15605.52012376,0.00042496,6]
[358874140,1745503850439,-6053.47751352,0.00042496,6]
[358874141,1745503850453,-150.042422,0.00042498,120]
[358874142,1745503850463,-1408.34547628,0.00042498,6]
[358874143,1745503850474,-151.85618485,0.000425,30]
[358874144,1745503850484,-501.86,0.000425,3]
[358874145,1745503850495,-15605.52012376,0.00042503,6]
[358874146,1745503850505,-68729.49695924,0.00042503,6]
[358874147,1745503850516,-200.0,0.00042504,6]
[358874148,1745503850526,-15890.69727638,0.00042504,6]
[358874149,1745503850538,-15605.52012376,0.00042507,6]
[358874150,1745503850548,-5942.14933765,0.00042517,6]
[358874151,1745503850559,-68729.49695924,0.00042517,6]
[358874152,1745503850569,-9278.59083604,0.00042521,6]
[358874153,1745503850579,-200.0,0.00042522,6]
[358874154,1745503850590,-15890.69727638,0.00042523,6]
[358874155,1745503850602,-313.91228903,0.00042523,6]
[358874156,1745503850613,-313.91228903,0.00042526,6]
[358874157,1745503850623,-1408.34547628,0.00042528,6]
[358874158,1745503850634,-1470.60133862,0.00042533,6]
[358874159,1745503850646,-19940.35713395,0.00042535,6]
[358874160,1745503850656,-849.07606515,0.00042535,6]
[358874161,1745503850666,-15890.69727638,0.00042537,6]
[358874162,1745503850676,-845.87,0.00042538,2]
[358874163,1745503850687,-1470.60133862,0.00042538,6]
[358874164,1745503850701,-211.41985655,0.00042541,6]
[358874165,1745503850711,-15605.52012376,0.00042544,6]
[358874166,1745503850721,-785.25857572,0.00042546,6]
[358874167,1745503850731,-68729.49695924,0.00042546,6]
[358874168,1745503850741,-500.0,0.00042547,2]
[358874169,1745503850751,-785.25857572,0.00042547,6]
[358874170,1745503850761,-5942.14933765,0.00042548,6]
[358874171,1745503850771,-5942.14933765,0.00042552,6]
[358874172,1745503850781,-1154.24327417,0.00042555,6]
[358874173,1745503850791,-12874.78509812,0.00042555,6]
[358874174,1745503850801,-290.62013793,0.00042558,6]
[358874175,1745503850811,-200.0,0.00042559,6]
[358874176,1745503850821,-313.91228903,0.00042562,6]
[358874177,1745503850831,-342.82,0.00042563,60]
[358874178,1745503850840,-908.48014765,0.00042564,6]
[358874179,1745503850850,-6053.47751352,0.00042566,6]
[358874180,1745503850861,-5942.14933765,0.00042566,6]
[358874181,1745503850872,-1408.34547628,0.00042566,6]
[358874182,1745503850882,-290.62013793,0.00042567,6]
[358874183,1745503850892,-4028.77929547,0.0004257,6]
[358874184,1745503850902,-785.25857572,0.00042573,6]
[358874185,1745503850913,-200.0,0.00042577,6]
[358874186,1745503850923,-200.0,0.00042578,6]
[358874187,1745503850933,-849.07606515,0.00042579,6]
[358874188,1745503850943,-2788.95080766,0.0004258,6]
[358874189,1745503850955,-19940.35713395,0.0004258,6]
[358874190,1745503850965,-11506.1929498,0.0004258,6]
[358874191,1745503850976,-290.62013793,0.0004258,6]
[358874192,1745503850986,-211.41985655,0.00042581,6]
[358874193,1745503850997,-12874.78509812,0.00042582,6]
[358874194,1745503851007,-313.91228903,0.00042583,6]
[358874195,1745503851017,-6053.47751352,0.00042587,6]
[358874196,1745503851028,-741.15909597,0.00042587,6]
[358874197,1745503851039,-211.41985655,0.00042588,6]
[358874198,1745503851050,-313.91228903,0.00042589,6]
[358874199,1745503851059,-320.74051982,0.0004259,2]
[358874200,1745503851070,-68729.49695924,0.00042591,6]
[358874201,1745503851081,-1154.24327417,0.00042591,6]
[358874202,1745503851092,-2741.03265742,0.00042593,6]
[358874203,1745503851105,-3668.66268871,0.00042593,6]
[358874204,1745503851115,-68729.49695924,0.00042594,6]
[358874205,1745503851126,-3668.66268871,0.00042595,6]
[358874206,1745503851137,-200.0,0.00042597,6]
[358874207,1745503851148,-200.0,0.00042597,6]
[358874208,1745503851158,-211.41985655,0.00042597,6]
[358874209,1745503851168,-200.0,0.00042599,6]
[358874210,1745503851178,-785.25857572,0.00042599,6]
[358874211,1745503851190,-5942.14933765,0.000426,6]
[358874212,1745503851203,-1470.60133862,0.000426,6]
[358874213,1745503851213,-4783.74,0.000426,14]
[358874214,1745503851223,-1006.96,0.000426,58]
[358874215,1745503851233,-7810.95549952,0.00042601,6]
[358874216,1745503851243,-1000.0,0.00042603,14]
[358874217,1745503851253,-785.25857572,0.00042603,6]
[358874218,1745503851263,-1470.60133862,0.00042604,6]
[358874219,1745503851273,-6053.47751352,0.00042604,6]
[358874220,1745503851283,-7353.00669314,0.00042604,6]
[358874221,1745503851293,-200.0,0.00042605,6]
[358874222,1745503851303,-849.07606515,0.00042608,6]
[358874223,1745503851313,-5942.14933765,0.00042609,6]
[358874224,1745503851323,-200.0,0.00042609,6]
[358874225,1745503851334,-6053.47751352,0.00042611,6]
[358874226,1745503851344,-1154.24327417,0.00042612,6]
[358874227,1745503851355,-200.0,0.00042614,6]
[358874228,1745503851364,-2741.03265742,0.00042618,6]
[358874229,1745503851376,-9278.59083604,0.00042618,6]
[358874230,1745503851386,-12874.78509812,0.00042621,6]
[358874231,1745503851397,-6053.47751352,0.00042621,6]
[358874232,1745503851408,-8636.03421314,0.00042626,6]
[358874233,1745503851418,-313.91228903,0.00042628,6]
[358874234,1745503851429,-313.91228903,0.00042628,6]
[358874235,1745503851439,-2788.95080766,0.0004263,6]
[358874236,1745503851449,-908.48014765,0.00042631,6]
[358874237,1745503851461,-741.15909597,0.00042631,6]
[358874238,1745503851471,-200.0,0.00042632,6]
[358874239,1745503851483,-19940.35713395,0.00042633,6]
[358874240,1745503851494,-200.0,0.00042634,6]
[358874241,1745503851504,-12874.78509812,0.00042637,6]
[358874242,1745503851515,-290.62013793,0.00042638,6]
[358874243,1745503851525,-9278.59083604,0.00042642,6]
[358874244,1745503851536,-200.0,0.00042643,6]
[358874245,1745503851546,-290.62013793,0.00042643,6]
[358874246,1745503851557,-8636.03421314,0.00042645,6]
[358874247,1745503851567,-2788.95080766,0.00042646,6]
[358874248,1745503851577,-7353.00669314,0.00042646,6]
[358874249,1745503851588,-2788.95080766,0.00042647,6]
[358874250,1745503851600,-200.0,0.00042648,6]
[358874251,1745503851613,-741.15909597,0.00042649,6]
[358874252,1745503851624,-8636.03421314,0.00042652,6]
[358874253,1745503851635,-7810.95549952,0.00042655,6]
[358874254,1745503851646,-3668.66268871,0.00042656,6]
[358874255,1745503851658,-7353.00669314,0.00042658,6]
[358874256,1745503851670,-1470.60133862,0.00042661,6]
[358874257,1745503851681,-9817.82291254,0.00042662,6]
[358874258,1745503853029,-10122.53422141,0.00042662,6]
[358874259,1745503853039,-12874.78509812,0.00042666,6]
[358874260,1745503853050,-8636.03421314,0.00042667,6]
[358874261,1745503853060,-7353.00669314,0.00042667,6]
[358874262,1745503853070,-11506.1929498,0.00042669,6]
[358874263,1745503853080,-11506.1929498,0.0004267,6]
[358874264,1745503853091,-1154.24327417,0.00042674,6]
[358874265,1745503853101,-1470.60133862,0.00042675,6]
[358874266,1745503853112,-290.62013793,0.00042676,6]
[358874267,1745503853122,-3668.66268871,0.00042678,6]
[358874268,1745503853132,-12874.78509812,0.00042679,6]
[358874269,1745503853142,-9278.59083604,0.0004268,6]
[358874270,1745503853153,-1154.24327417,0.0004268,6]
[358874271,1745503853163,-741.15909597,0.00042686,6]
[358874272,1745503853174,-908.48014765,0.00042686,6]
[358874273,1745503853184,-1408.34547628,0.00042687,6]
[358874274,1745503853194,-200.0,0.00042687,6]
[358874275,1745503853208,-425.00515,0.00042688,30]
[358874276,1745503853218,-9278.59083604,0.00042693,6]
[358874277,1745503853228,-200.0,0.00042694,6]
[358874278,1745503853238,-5871.57138977,0.00042695,6]
[358874279,1745503853259,-9733.94873399,0.00042695,6]
[358874280,1745503853270,-2788.95080766,0.00042695,6]
[358874281,1745503853280,-6053.47751352,0.00042696,6]
[358874282,1745503853289,-7353.00669314,0.00042701,6]
[358874283,1745503853299,-2741.03265742,0.00042702,6]
[358874284,1745503853310,-200.0,0.00042703,6]
[358874285,1745503853321,-5942.14933765,0.00042704,6]
[358874286,1745503853332,-19940.35713395,0.00042705,6]
[358874287,1745503853343,-11506.1929498,0.00042705,6]
[358874288,1745503853353,-1154.24327417,0.00042708,6]
[358874289,1745503853363,-7810.95549952,0.00042708,6]
[358874290,1745503853373,-15028.42881885,0.00042708,6]
[358874291,1745503854950,-1864.12420033,0.00019986,2]
[358874292,1745503854987,-816.8,0.00019986,2]
[358874293,1745503855000,-2444.84,0.00019986,2]
[358874294,1745503855055,-832.09721028,0.00019986,2]
[358874295,1745503855068,-5109.92603439,0.00019986,2]
[358874296,1745503855080,-577.09130491,0.00042708,6]
[358874297,1745503855090,-15890.69727638,0.00042709,6]
[358874298,1745503855101,-4028.77929547,0.00042709,6]
[358874299,1745503855111,-849.07606515,0.00042709,6]
[358874300,1745503855122,-5477.52556489,0.00042709,6]
[358874301,1745503855148,-1393.07341434,0.00042709,6]
[358874302,1745503913396,1000.0,0.00037808,60]
[358874303,1745503974228,1000.0,0.00037808,60]
[358874304,1745504079869,1000.0,0.00037808,60]
[358874306,1745504380028,4050.76283795,0.00018,2]
[358874307,1745504702696,315.6,0.00037808,60]
[358874319,1745504778020,250.0,0.00017,2]
[358874320,1745504779085,300.0,0.00019,2]
[358874324,1745504875387,17566.86661369,0.0002,4]
[358874325,1745504875413,28277.28883182,0.0002,4]
[358874340,1745504933738,1500.0,0.00032877,120]
[358874370,1745505031611,-217.44587564,0.000198,2]
[358874371,1745505031622,-150.0,0.00019807,2]
[358874372,1745505031632,-250.0,0.00019815,2]
[358874373,1745505031642,-354.7399485,0.0001983,2]
[358874374,1745505031665,-350.0,0.0001983,2]
[358874375,1745505031676,-748.44104968,0.0001983,2]
[358874376,1745505031745,-1499.6,0.0001983,2]
[358874377,1745505031757,-450.0,0.0001983,2]
[358874378,1745505031769,-2379.29786163,0.0001983,2]
[358874400,1745505032114,-1298.52265015,0.0001983,2]
[358874402,1745505032125,-150.0,0.00019834,2]
[358874404,1745505032136,-250.0,0.00019852,2]
[358874407,1745505032147,-1200.0,0.00019874,2]
[358874410,1745505032158,-300.0,0.00019876,2]
[358874414,1745505032170,-300.0,0.00019876,2]
[358874416,1745505032180,-8142.27904078,0.00019877,2]
[358874418,1745505032192,-2575.67454304,0.00019885,2]
[358874420,1745505032202,-1231.0157,0.000199,2]
[358874421,1745505032213,-1000.0,0.000199,2]
[358874422,1745505032223,-2348.59,0.000199,2]
[358874423,1745505032233,-184.62091697,0.000199,2]
[358874424,1745505032250,-3640.76334672,0.000199,2]
[358874425,1745505032260,-477.43848668,0.000199,2]
[358874426,1745505032270,-15092.89983179,0.000199,2]
[358874427,1745505032294,-5285.11262695,0.000199,2]
[358874428,1745505036473,150.042423,0.00037808,120]
[358874429,1745505037300,150.042423,0.00037808,120]
[358874439,1745505037613,-450.319,0.000199,2]
[358874440,1745505037701,-559.071,0.000199,2]
[358874441,1745505037711,-2841.08151366,0.000199,2]
[358874442,1745505037723,-1467.65952378,0.000199,2]
[358874443,1745505037790,-460.18638296,0.000199,2]
[358874444,1745505037802,-1302.308675,0.000199,2]
[358874445,1745505037815,-317.3634628,0.000199,2]
[358874446,1745505037828,-7451.06592466,0.000199,2]
[358874447,1745505037838,-1451.15246668,0.00019901,2]
[358874448,1745505037850,-93167.54389813,0.00019901,2]
[358874449,1745505037864,-95060.02396302,0.00019901,2]
[358874450,1745505037875,-189678.72032783,0.00019908,2]
[358874451,1745505037885,-57144.56107558,0.00019911,2]
[358874452,1745505037895,-17630.40638703,0.00019915,2]
[358874453,1745505037906,-31094.46851651,0.00019924,2]
[358874454,1745505037917,-12851.1074323,0.00019934,2]
[358874455,1745505037928,-14240.37977821,0.00019939,2]
[358874456,1745505037939,-31094.46851651,0.00019943,2]
[358874457,1745505037949,-14240.37977821,0.00019971,2]
[358874458,1745505037959,-12851.1074323,0.00019973,2]
[358874459,1745505037970,-57144.56107558,0.00019988,2]
[358874460,1745505037980,-34217.6779416,0.00019989,2]
[358874461,1745505037994,-405.80985346,0.0001999,2]
[358874462,1745505038005,-405.80985346,0.0001999,2]
[358874463,1745505038016,-405.80985346,0.0001999,2]
[358874464,1745505038026,-17630.40638703,0.00019995,2]
[358874465,1745505038037,-500.0,0.00019998,2]
[358874466,1745505038047,-190.18247764,0.00019998,2]
[358874467,1745505038058,-332.15146067,0.00019998,2]
[358874469,1745505038069,-500.0,0.00019999,2]
[358874470,1745505038079,-500.0,0.00019999,2]
[358874472,1745505038089,-500.0,0.00019999,2]
[358874475,1745505038099,-500.0,0.00019999,2]
[358874476,1745505038109,-500.0,0.00019999,2]
[358874479,1745505038119,-300.0,0.00019999,2]
[358874481,1745505038128,-300.0,0.00019999,2]
[358874483,1745505038138,-500.0,0.00019999,2]
[358874485,1745505038148,-500.0,0.00019999,2]
[358874487,1745505038158,-500.0,0.00019999,2]
[358874489,1745505038168,-500.0,0.00019999,2]
[358874491,1745505038178,-500.0,0.00019999,2]
[358874492,1745505038188,-82692.59602713,0.00019999,2]
[358874494,1745505038197,-982.4922,0.00019999,2]
[358874496,1745505038207,-1043245.70331657,0.0002,2]
[358874497,1745505038216,-306691.92422104,0.0002,2]
[358874498,1745505038235,-2494318.525,0.0002,2]
[358874499,1745505038440,150.042423,0.00037808,120]
[358874500,1745505039327,150.042423,0.00037808,120]
[358874502,1745505039759,150.042423,0.00037808,120]
[358874503,1745505039831,-929.03075067,0.0002,2]
[358874504,1745505039843,-5255431.5978781,0.0002,2]
[358874505,1745505040090,-930.24,0.0002,2]
[358874506,1745505040107,-8000.0,0.0002,2]
[358874510,1745505042696,-46455.633,0.0002,2]
[358874511,1745505042708,-521.38311666,0.0002,2]
[358874513,1745505043110,150.042423,0.00037808,120]
[358874516,1745505045868,-1858.0,0.0002,2]
[358874517,1745505045880,-598.33,0.0002,2]
[358874518,1745505045895,-4083.74,0.0002,2]
[358874519,1745505045936,-35223.69793067,0.0002,2]
[358874520,1745505045947,-2786.68,0.0002,2]
[358874521,1745505045995,-13942.5,0.0002,2]
[358874524,1745505052400,-9773921.06543707,0.0002,2]
[358874525,1745505052411,-1828.79,0.0002,2]
[358874526,1745505052421,-3404432.30525942,0.0002,2]
[358874527,1745505053214,-28376.22683167,0.0002,2]
[358874528,1745505053236,-707331.98605619,0.0002,2]
[358874529,1745505055821,150.042423,0.00037808,120]
[358874530,1745505096072,2144.370716,0.00037808,60]
[358874531,1745505125240,208.0,0.00037808,60]
[358874534,1745505263110,200.0,0.000191,2]
[358874535,1745505268520,1995.0,0.00037808,60]
[358874536,1745505349919,3067.66,0.00037808,60]
[358874537,1745505354920,2367.9,0.00037808,60]
[358874539,1745505595527,1653.0,0.00037808,120]
[358874546,1745505958570,-200.0,0.0001951,2]
[358874547,1745505958594,-150.0,0.00019607,2]
[358874548,1745505958621,-150.0,0.00019772,2]
[358874549,1745505958646,-2159.38,0.00019857,2]
[358874550,1745505958672,-150.0,0.00019863,2]
[358874551,1745505958696,-300.0,0.00019899,2]
[358874552,1745505958721,-1200.0,0.00019899,2]
[358874553,1745505958744,-300.0,0.00019899,2]
[358874554,1745505958766,-663.0695,0.000199,2]
[358874555,1745505958788,-170.24676345,0.000199,2]
[358874556,1745505958813,-209.13363581,0.000199,2]
[358874557,1745505958835,-10038.8661,0.000199,2]
[358874558,1745505958857,-651.0711,0.000199,2]
[358874559,1745505958880,-243.15060312,0.000199,2]
[358874560,1745505958902,-157.61510103,0.00019973,2]
[358874561,1745505958923,-484.19938864,0.00019999,2]
[358874562,1745505958944,-1000.0,0.00019999,2]
[358874563,1745505958966,-179.07,0.00019999,2]
[358874564,1745505958989,-578.313,0.00019999,2]
[358874565,1745505959012,-582.50602247,0.00019999,2]
[358874566,1745505959038,-31247.97,0.00019999,2]
[358874567,1745505959062,-9999.99,0.00019999,2]
[358874568,1745505959084,-3531.26,0.00019999,2]
[358874569,1745505959106,-150.99,0.00019999,2]
[358874570,1745505959131,-64514.16878548,0.0002,2]
[358874579,1745505999396,-300.0,0.00019899,2]
[358874580,1745505999422,-150.0,0.0001995,2]
[358874581,1745505999446,-167034.0,0.0002,2]
[358874586,1745506012104,1500.0,0.00019101,2]
[358874587,1745506035218,-863.1813,0.000198,2]
[358874588,1745506035240,-249.19968241,0.000199,2]
[358874589,1745506035265,-500.0,0.00019973,2]
[358874590,1745506035288,-280.71606857,0.00019973,2]
[358874591,1745506035313,-500.0,0.00019973,2]
[358874592,1745506035338,-3406.3678012,0.00019986,2]
[358874593,1745506035360,-424.98444748,0.00019999,2]
[358874594,1745506035383,-66586.55070034,0.0002,2]
[358874595,1745506047238,-5886.0,0.0002,2]
[358874596,1745506055967,173.19,0.00034466,120]
[358874597,1745506131313,199.0,0.00037808,60]
[358874626,1745506219648,760.28,0.00037808,60]
[358874634,1745506231738,-490.212787,0.00019701,2]
[358874635,1745506231748,-250.0,0.0001975,2]
[358874636,1745506231757,-292.77395001,0.000198,2]
[358874637,1745506231778,-174.99434999,0.000198,2]
[358874638,1745506231788,-300.0,0.00019899,2]
[358874639,1745506231798,-1200.0,0.00019899,2]
[358874640,1745506231808,-300.0,0.00019899,2]
[358874641,1745506231820,-1773.73896427,0.000199,2]
[358874689,1745506232372,-2.89899956,0.000199,2]
[358874695,1745506232396,-653.76529031,0.000199,2]
[358874705,1745506232448,-15402.17824586,0.000199,2]
[358874707,1745506232461,-371.08058651,0.000199,2]
[358874710,1745506232481,-14648.95045083,0.000199,2]
[358874716,1745506232524,-169.0254,0.000199,2]
[358874719,1745506232544,-265.9975,0.000199,2]
[358874724,1745506232579,-308.2786,0.000199,2]
[358874727,1745506232606,-2938.469,0.000199,2]
[358874731,1745506232628,-150.0,0.0001995,2]
[358874734,1745506232650,-500.0,0.00019973,2]
[358874738,1745506232672,-500.95167534,0.00019973,2]
[358874741,1745506232694,-161.1858119,0.00019973,2]
[358874744,1745506232714,-3039.6937035,0.00019986,2]
[358874747,1745506232735,-850.0,0.00019999,2]
[358874750,1745506232752,-4849.63169898,0.00019999,2]
[358874753,1745506232771,-8800.55732684,0.00019999,2]
[358874757,1745506232796,-81.74162476,0.00019999,2]
[358874760,1745506232813,-4914.08555714,0.0002,2]
[358874763,1745506232835,-819.33484271,0.0002,2]
[358874767,1745506232863,-640.54032554,0.0002,2]
[358874770,1745506232884,-718.30226286,0.0002,2]
[358874774,1745506233170,-717.83269566,0.0002,2]
[358874775,1745506233193,-9911.92937856,0.0002,2]
[358874777,1745506237945,-566.96587752,0.000199,2]
[358874778,1745506237955,-683763.54390891,0.0002,2]
[358874779,1745506237964,-426.0150343,0.0002,2]
[358874780,1745506237973,-244.2623681,0.0002,2]
[358874781,1745506237983,-162.84157873,0.0002,2]
[358874782,1745506237993,-1502.19489104,0.0002,2]
[358874783,1745506238002,-1645.91,0.0002,2]
[358874784,1745506238012,-8988.16715886,0.0002001,2]
[358874785,1745506238021,-4955.49028637,0.0002001,2]
[358874786,1745506238030,-5772.0,0.0002001,2]
[358874787,1745506238040,-200.0,0.00020076,2]
[358874788,1745506238050,-200.0,0.000201,2]
[358874790,1745506238059,-1672.50399398,0.0002015,2]